[Event "Late-Titled-Tuesday-Blitz-June-04-2024"]
[Site "Chess.com"]
[Date "2024.06.04"]
[Round "2"]
[White "chessdjw"]
[Black "StellarChess"]
[Result "1-0"]
[WhiteElo "2771"]
[BlackElo "2530"]
[TimeControl "180+1"]
[EndTime "14:17:41 PDT"]
[Termination "chessdjw won by checkmate"]

1. e4 {[%clk 0:03:00.9]} 1... e5 {[%clk 0:02:59.9]} 2. Nf3 {[%clk 0:03:01]} 2...
Nf6 {[%clk 0:02:59.5]} 3. Nxe5 {[%clk 0:02:56.6]} 3... d6 {[%clk 0:02:59.4]} 4.
Nf3 {[%clk 0:02:56.1]} 4... Nxe4 {[%clk 0:03:00]} 5. Bd3 {[%clk 0:02:55.6]} 5...
Nf6 {[%clk 0:03:00]} 6. O-O {[%clk 0:02:51.9]} 6... Be7 {[%clk 0:03:00.7]} 7. c3
{[%clk 0:02:51.8]} 7... O-O {[%clk 0:03:01.3]} 8. h3 {[%clk 0:02:51.6]} 8... h6
{[%clk 0:03:00.6]} 9. Bc2 {[%clk 0:02:51.3]} 9... d5 {[%clk 0:02:58.8]} 10. d4
{[%clk 0:02:50.7]} 10... Bd6 {[%clk 0:02:57.1]} 11. Ne5 {[%clk 0:02:49.5]} 11...
Nbd7 {[%clk 0:02:55.4]} 12. Re1 {[%clk 0:02:29.2]} 12... Re8 {[%clk 0:02:47.6]}
13. Bf4 {[%clk 0:02:28.6]} 13... Nf8 {[%clk 0:02:43.6]} 14. Nd2 {[%clk
0:02:24.4]} 14... Be6 {[%clk 0:02:43.8]} 15. Qf3 {[%clk 0:02:18.6]} 15... Rc8
{[%clk 0:02:06.2]} 16. Nf1 {[%clk 0:01:41.2]} 16... Bxe5 {[%clk 0:02:01.4]} 17.
dxe5 {[%clk 0:01:36.1]} 17... N6d7 {[%clk 0:01:57.5]} 18. Rad1 {[%clk
0:01:34.5]} 18... Qe7 {[%clk 0:01:49.3]} 19. Ne3 {[%clk 0:01:25.3]} 19... c6
{[%clk 0:01:49]} 20. Qg3 {[%clk 0:01:21.2]} 20... Kh8 {[%clk 0:01:44.1]} 21. Nf5
{[%clk 0:01:18.8]} 21... Bxf5 {[%clk 0:01:43.7]} 22. Bxf5 {[%clk 0:01:19.7]}
22... Ne6 {[%clk 0:01:44.3]} 23. Bc1 {[%clk 0:01:17.7]} 23... Rcd8 {[%clk
0:01:37.1]} 24. f4 {[%clk 0:01:17.4]} 24... Ndf8 {[%clk 0:01:36.7]} 25. Bc2
{[%clk 0:01:14.7]} 25... d4 {[%clk 0:01:21.8]} 26. f5 {[%clk 0:01:10.9]} 26...
Nc7 {[%clk 0:01:09.2]} 27. cxd4 {[%clk 0:01:07.4]} 27... Nd5 {[%clk 0:01:02.6]}
28. f6 {[%clk 0:00:49.7]} 28... gxf6 {[%clk 0:00:59.7]} 29. Bxh6 {[%clk
0:00:48.8]} 29... Ng6 {[%clk 0:00:57.7]} 30. e6 {[%clk 0:00:28.9]} 30... Rg8
{[%clk 0:00:49.3]} 31. Kh1 {[%clk 0:00:26.3]} 31... Kh7 {[%clk 0:00:28.8]} 32.
Qh4 {[%clk 0:00:23.9]} 32... f5 {[%clk 0:00:22.9]} 33. Qh5 {[%clk 0:00:20.1]}
33... Qh4 {[%clk 0:00:20.9]} 34. Qxh4 {[%clk 0:00:14.2]} 34... Nxh4 {[%clk
0:00:21.8]} 35. exf7 {[%clk 0:00:14.5]} 35... Rxg2 {[%clk 0:00:20.5]} 36. Bxf5+
{[%clk 0:00:14]} 36... Kxh6 {[%clk 0:00:19.9]} 37. Re8 {[%clk 0:00:11.6]} 37...
Nf4 {[%clk 0:00:14.7]} 38. f8=Q+ {[%clk 0:00:11.8]} 38... Kg5 {[%clk 0:00:14.4]}
39. Rxd8 {[%clk 0:00:07.8]} 39... Nf3 {[%clk 0:00:12.8]} 40. Qg7+ {[%clk
0:00:06.3]} 40... Kh4 {[%clk 0:00:09.4]} 41. Qxg2 {[%clk 0:00:03]} 41... Nxg2
{[%clk 0:00:10.3]} 42. Kxg2 {[%clk 0:00:03.3]} 42... Ng5 {[%clk 0:00:11.2]} 43.
Rh8+ {[%clk 0:00:02.6]} 43... Nh7 {[%clk 0:00:12.1]} 44. Rxh7+ {[%clk 0:00:03]}
44... Kg5 {[%clk 0:00:13]} 45. Rf7 {[%clk 0:00:03.4]} 45... Kf4 {[%clk
0:00:13.4]} 46. Kf2 {[%clk 0:00:03.6]} 46... Kg5 {[%clk 0:00:14.3]} 47. Kg3
{[%clk 0:00:03.9]} 47... c5 {[%clk 0:00:14.5]} 48. h4+ {[%clk 0:00:04.6]} 48...
Kh6 {[%clk 0:00:14.8]} 49. Rh7# {[%clk 0:00:05.4]} 1-0

[Event "Late-Titled-Tuesday-Blitz-June-04-2024"]
[Site "Chess.com"]
[Date "2024.06.04"]
[Round "2"]
[White "Bryanl106"]
[Black "NajdorfPlayerc5"]
[Result "1-0"]
[WhiteElo "2725"]
[BlackElo "2432"]
[TimeControl "180+1"]
[EndTime "14:17:41 PDT"]
[Termination "Bryanl106 won by checkmate"]

1. e4 {[%clk 0:03:00.9]} 1... c5 {[%clk 0:02:55.9]} 2. Nf3 {[%clk 0:02:59.4]}
2... Nc6 {[%clk 0:02:50.1]} 3. d4 {[%clk 0:02:55.9]} 3... cxd4 {[%clk 0:02:51]}
4. Nxd4 {[%clk 0:02:56.4]} 4... Nf6 {[%clk 0:02:43]} 5. Nc3 {[%clk 0:02:56]}
5... e5 {[%clk 0:02:39.1]} 6. Ndb5 {[%clk 0:02:55.7]} 6... d6 {[%clk 0:02:39.2]}
7. Bg5 {[%clk 0:02:55.7]} 7... a6 {[%clk 0:02:39.1]} 8. Na3 {[%clk 0:02:56.4]}
8... b5 {[%clk 0:02:39.4]} 9. Nd5 {[%clk 0:02:57.1]} 9... Be7 {[%clk 0:02:39]}
10. Bxf6 {[%clk 0:02:57.7]} 10... Bxf6 {[%clk 0:02:39.9]} 11. c3 {[%clk
0:02:58.1]} 11... O-O {[%clk 0:02:31.9]} 12. h4 {[%clk 0:02:57.8]} 12... Rb8
{[%clk 0:02:29.7]} 13. Nc2 {[%clk 0:02:57.5]} 13... a5 {[%clk 0:02:06.9]} 14. g3
{[%clk 0:02:48.9]} 14... b4 {[%clk 0:02:01.1]} 15. Be2 {[%clk 0:02:36]} 15...
bxc3 {[%clk 0:01:48.4]} 16. bxc3 {[%clk 0:02:36.9]} 16... Be7 {[%clk 0:01:28]}
17. O-O {[%clk 0:02:34.3]} 17... Be6 {[%clk 0:01:27.3]} 18. Nce3 {[%clk
0:02:34.2]} 18... Qd7 {[%clk 0:01:21.8]} 19. Bg4 {[%clk 0:02:33.6]} 19... Rfc8
{[%clk 0:01:20.2]} 20. Qf3 {[%clk 0:02:27.1]} 20... Bd8 {[%clk 0:01:16.9]} 21.
Rad1 {[%clk 0:02:22.6]} 21... Ne7 {[%clk 0:01:12.9]} 22. Nxe7+ {[%clk
0:01:52.7]} 22... Bxe7 {[%clk 0:01:13.8]} 23. Bxe6 {[%clk 0:01:42.4]} 23... fxe6
{[%clk 0:01:11.5]} 24. c4 {[%clk 0:01:36.1]} 24... Bd8 {[%clk 0:01:05.8]} 25.
Rb1 {[%clk 0:01:18.4]} 25... Bb6 {[%clk 0:01:02.6]} 26. Rfc1 {[%clk 0:00:36.9]}
26... Bc5 {[%clk 0:00:49.2]} 27. Qe2 {[%clk 0:00:31.6]} 27... Qc6 {[%clk
0:00:46.5]} 28. Qd3 {[%clk 0:00:28.5]} 28... Qc7 {[%clk 0:00:36.7]} 29. Kg2
{[%clk 0:00:24.6]} 29... Rxb1 {[%clk 0:00:36.5]} 30. Rxb1 {[%clk 0:00:25.5]}
30... Rb8 {[%clk 0:00:36.9]} 31. Rb5 {[%clk 0:00:24.8]} 31... Rb6 {[%clk
0:00:32]} 32. a4 {[%clk 0:00:23.5]} 32... Bb4 {[%clk 0:00:28]} 33. Nc2 {[%clk
0:00:20.8]} 33... Rxb5 {[%clk 0:00:23.2]} 34. cxb5 {[%clk 0:00:21.7]} 34... Bc5
{[%clk 0:00:23.2]} 35. Qc4 {[%clk 0:00:21.4]} 35... Qd7 {[%clk 0:00:22]} 36. Ne1
{[%clk 0:00:21.7]} 36... Kf7 {[%clk 0:00:20.4]} 37. Nd3 {[%clk 0:00:22]} 37...
Bd4 {[%clk 0:00:20.4]} 38. f4 {[%clk 0:00:22.3]} 38... d5 {[%clk 0:00:19.8]} 39.
exd5 {[%clk 0:00:23.2]} 39... exd5 {[%clk 0:00:20.4]} 40. Qxd4 {[%clk 0:00:22]}
40... exd4 {[%clk 0:00:14.3]} 41. Ne5+ {[%clk 0:00:22.1]} 41... Ke6 {[%clk
0:00:15.2]} 42. Nxd7 {[%clk 0:00:23]} 42... Kxd7 {[%clk 0:00:15.7]} 43. Kf2
{[%clk 0:00:23.7]} 43... Kd6 {[%clk 0:00:13]} 44. Ke2 {[%clk 0:00:24.2]} 44...
h5 {[%clk 0:00:09.1]} 45. Kd3 {[%clk 0:00:24.6]} 45... Kc5 {[%clk 0:00:08.8]}
46. f5 {[%clk 0:00:24]} 46... Kb4 {[%clk 0:00:01.4]} 47. b6 {[%clk 0:00:23.5]}
47... Kc5 {[%clk 0:00:01.3]} 48. b7 {[%clk 0:00:24.4]} 48... Kb4 {[%clk
0:00:01.3]} 49. b8=Q+ {[%clk 0:00:25.3]} 49... Kxa4 {[%clk 0:00:02.2]} 50. Kc2
{[%clk 0:00:24.8]} 50... Ka3 {[%clk 0:00:02.2]} 51. Qb3# {[%clk 0:00:24.5]} 1-0

[Event "Late-Titled-Tuesday-Blitz-June-04-2024"]
[Site "Chess.com"]
[Date "2024.06.04"]
[Round "2"]
[White "oskariot"]
[Black "duone"]
[Result "1/2-1/2"]
[WhiteElo "2689"]
[BlackElo "2379"]
[TimeControl "180+1"]
[EndTime "14:17:42 PDT"]
[Termination "Game drawn - insufficient material"]

1. e4 {[%clk 0:03:00.9]} 1... c5 {[%clk 0:02:54.5]} 2. Nf3 {[%clk 0:02:58.1]}
2... d6 {[%clk 0:02:51.7]} 3. d4 {[%clk 0:02:57.7]} 3... cxd4 {[%clk 0:02:52]}
4. Nxd4 {[%clk 0:02:58.6]} 4... Nf6 {[%clk 0:02:51.8]} 5. Nc3 {[%clk 0:02:59]}
5... Nc6 {[%clk 0:02:51.9]} 6. Bg5 {[%clk 0:02:57.7]} 6... e6 {[%clk 0:02:51]}
7. Qd2 {[%clk 0:02:58.2]} 7... Be7 {[%clk 0:02:50.7]} 8. O-O-O {[%clk 0:02:54]}
8... a6 {[%clk 0:02:50.9]} 9. f4 {[%clk 0:02:51.6]} 9... Bd7 {[%clk 0:02:50.6]}
10. Nf3 {[%clk 0:02:49.9]} 10... b5 {[%clk 0:02:49.2]} 11. Bxf6 {[%clk
0:02:48.7]} 11... Bxf6 {[%clk 0:02:45.1]} 12. Qxd6 {[%clk 0:02:44.1]} 12... Bxc3
{[%clk 0:02:39.1]} 13. bxc3 {[%clk 0:02:45]} 13... Rc8 {[%clk 0:02:37.6]} 14. f5
{[%clk 0:02:16.7]} 14... Qe7 {[%clk 0:02:24.2]} 15. g4 {[%clk 0:01:46.3]} 15...
Qxd6 {[%clk 0:02:18.2]} 16. Rxd6 {[%clk 0:01:47.2]} 16... Ke7 {[%clk 0:02:17.8]}
17. Rd2 {[%clk 0:01:46.2]} 17... Na5 {[%clk 0:02:12.6]} 18. Ne5 {[%clk
0:01:42.9]} 18... Rhd8 {[%clk 0:02:10.9]} 19. Be2 {[%clk 0:01:30.8]} 19... Rxc3
{[%clk 0:02:03.4]} 20. Rhd1 {[%clk 0:01:30.8]} 20... Rc7 {[%clk 0:02:01.6]} 21.
g5 {[%clk 0:01:31.2]} 21... exf5 {[%clk 0:01:50.1]} 22. Nxd7 {[%clk 0:00:44.9]}
22... Rcxd7 {[%clk 0:01:47.9]} 23. exf5 {[%clk 0:00:43.3]} 23... Nc6 {[%clk
0:01:39.8]} 24. f6+ {[%clk 0:00:23.4]} 24... gxf6 {[%clk 0:01:39.9]} 25. gxf6+
{[%clk 0:00:24.3]} 25... Ke8 {[%clk 0:01:40.5]} 26. Rxd7 {[%clk 0:00:21.1]}
26... Rxd7 {[%clk 0:01:40.3]} 27. Rg1 {[%clk 0:00:21.8]} 27... Rd6 {[%clk
0:01:36.5]} 28. Rg8+ {[%clk 0:00:22.3]} 28... Kd7 {[%clk 0:01:36.9]} 29. Rg7
{[%clk 0:00:23.2]} 29... Rxf6 {[%clk 0:01:35.7]} 30. Rxh7 {[%clk 0:00:23.7]}
30... Nd4 {[%clk 0:01:33.5]} 31. Bd3 {[%clk 0:00:23]} 31... Ke7 {[%clk
0:01:31.7]} 32. h4 {[%clk 0:00:23]} 32... Rf2 {[%clk 0:01:30.7]} 33. h5 {[%clk
0:00:21.2]} 33... Kf6 {[%clk 0:01:29.9]} 34. Rh6+ {[%clk 0:00:20.6]} 34... Kg5
{[%clk 0:01:28.3]} 35. Rd6 {[%clk 0:00:20.3]} 35... Ne2+ {[%clk 0:01:24.8]} 36.
Kb2 {[%clk 0:00:19.5]} 36... Nf4 {[%clk 0:01:23.1]} 37. Be4 {[%clk 0:00:16.5]}
37... Nxh5 {[%clk 0:01:19.7]} 38. Rxa6 {[%clk 0:00:16.2]} 38... Nf6 {[%clk
0:01:19.9]} 39. Bc6 {[%clk 0:00:14.4]} 39... Rf5 {[%clk 0:01:19.7]} 40. Ra5
{[%clk 0:00:13.9]} 40... b4 {[%clk 0:01:20]} 41. Rxf5+ {[%clk 0:00:11.7]} 41...
Kxf5 {[%clk 0:01:20.9]} 42. Kb3 {[%clk 0:00:12.5]} 42... Ke5 {[%clk 0:01:19.4]}
43. Kxb4 {[%clk 0:00:13]} 43... Ng4 {[%clk 0:01:16.6]} 44. a4 {[%clk 0:00:12.7]}
44... Kd6 {[%clk 0:01:16.9]} 45. Kb5 {[%clk 0:00:12.2]} 45... Ne5 {[%clk
0:01:17.1]} 46. Be4 {[%clk 0:00:11.3]} 46... Kc7 {[%clk 0:01:13.8]} 47. a5
{[%clk 0:00:11.8]} 47... Nd7 {[%clk 0:01:13.4]} 48. c4 {[%clk 0:00:11.1]} 48...
Nf6 {[%clk 0:01:13.1]} 49. Bf3 {[%clk 0:00:11.2]} 49... Nd7 {[%clk 0:01:12.7]}
50. a6 {[%clk 0:00:11.5]} 50... Kb8 {[%clk 0:01:10.6]} 51. c5 {[%clk 0:00:12]}
51... f5 {[%clk 0:01:09.8]} 52. Be2 {[%clk 0:00:08.4]} 52... f4 {[%clk
0:01:07.8]} 53. Bg4 {[%clk 0:00:08.8]} 53... Ne5 {[%clk 0:01:07.4]} 54. Bf5
{[%clk 0:00:07.7]} 54... f3 {[%clk 0:01:07.2]} 55. Bh3 {[%clk 0:00:07.6]} 55...
f2 {[%clk 0:01:06.4]} 56. c6 {[%clk 0:00:08.2]} 56... Nf3 {[%clk 0:00:44.6]} 57.
a7+ {[%clk 0:00:06.7]} 57... Kxa7 {[%clk 0:00:42.4]} 58. c7 {[%clk 0:00:07.3]}
58... f1=Q+ {[%clk 0:00:42.5]} 59. Bxf1 {[%clk 0:00:07.2]} 59... Kb7 {[%clk
0:00:43.1]} 60. Bg2 {[%clk 0:00:06.1]} 60... Kxc7 {[%clk 0:00:43.4]} 1/2-1/2

[Event "Late-Titled-Tuesday-Blitz-June-04-2024"]
[Site "Chess.com"]
[Date "2024.06.04"]
[Round "2"]
[White "rionelG"]
[Black "GiorgianBarbosa"]
[Result "1-0"]
[WhiteElo "2310"]
[BlackElo "2498"]
[TimeControl "180+1"]
[EndTime "14:17:43 PDT"]
[Termination "rionelG won on time"]

1. e4 {[%clk 0:03:00.9]} 1... c5 {[%clk 0:02:59]} 2. Nf3 {[%clk 0:02:58.4]} 2...
g6 {[%clk 0:02:59]} 3. d4 {[%clk 0:02:54.4]} 3... cxd4 {[%clk 0:02:59.9]} 4.
Nxd4 {[%clk 0:02:54.9]} 4... Bg7 {[%clk 0:03:00.2]} 5. Nc3 {[%clk 0:02:52.6]}
5... Nc6 {[%clk 0:02:58.8]} 6. Nb3 {[%clk 0:02:51.6]} 6... Nf6 {[%clk
0:02:59.1]} 7. Be2 {[%clk 0:02:49.1]} 7... O-O {[%clk 0:02:59.1]} 8. Be3 {[%clk
0:02:49.5]} 8... d6 {[%clk 0:02:55.5]} 9. f4 {[%clk 0:02:48.9]} 9... Na5 {[%clk
0:02:55.3]} 10. Nxa5 {[%clk 0:02:33.8]} 10... Qxa5 {[%clk 0:02:54.5]} 11. O-O
{[%clk 0:02:34.3]} 11... Bd7 {[%clk 0:02:50.9]} 12. g4 {[%clk 0:02:12]} 12...
Rac8 {[%clk 0:02:44.7]} 13. g5 {[%clk 0:02:06.3]} 13... Rxc3 {[%clk 0:02:43.5]}
14. bxc3 {[%clk 0:01:37.6]} 14... Nxe4 {[%clk 0:02:43.2]} 15. Bd4 {[%clk
0:01:35.2]} 15... Nxc3 {[%clk 0:02:41.9]} 16. Bxc3 {[%clk 0:01:33.1]} 16... Qxc3
{[%clk 0:02:41.7]} 17. Rb1 {[%clk 0:01:23.7]} 17... b6 {[%clk 0:02:16.4]} 18.
Qd3 {[%clk 0:01:00.2]} 18... Qc5+ {[%clk 0:02:08.6]} 19. Kg2 {[%clk 0:00:46.2]}
19... Bf5 {[%clk 0:02:07.8]} 20. Qf3 {[%clk 0:00:27.6]} 20... Qxc2 {[%clk
0:02:07.3]} 21. Rbc1 {[%clk 0:00:18.6]} 21... Qxa2 {[%clk 0:02:04.1]} 22. Rc7
{[%clk 0:00:17]} 22... Qa4 {[%clk 0:01:59.4]} 23. Rxe7 {[%clk 0:00:16.2]} 23...
Qd4 {[%clk 0:01:40.4]} 24. Rd1 {[%clk 0:00:13.6]} 24... Qa4 {[%clk 0:01:23.1]}
25. Rxd6 {[%clk 0:00:12.6]} 25... Rc8 {[%clk 0:01:00]} 26. Bd3 {[%clk
0:00:08.4]} 26... Bf8 {[%clk 0:00:29.9]} 27. Bxf5 {[%clk 0:00:07.8]} 27... gxf5
{[%clk 0:00:26.7]} 28. Rdd7 {[%clk 0:00:02.5]} 28... Bxe7 {[%clk 0:00:25.8]} 29.
Rxe7 {[%clk 0:00:03.4]} 29... Qc2+ {[%clk 0:00:25.3]} 30. Kg3 {[%clk 0:00:02]}
30... Rc3 {[%clk 0:00:24.8]} 31. Re3 {[%clk 0:00:02.7]} 31... Rxe3 {[%clk
0:00:24.9]} 32. Qxe3 {[%clk 0:00:03.6]} 32... Qe4 {[%clk 0:00:25.8]} 33. Qxe4
{[%clk 0:00:03.2]} 33... fxe4 {[%clk 0:00:25.9]} 34. Kf2 {[%clk 0:00:04.1]}
34... a5 {[%clk 0:00:26.8]} 35. f5 {[%clk 0:00:03.7]} 1-0

[Event "Late-Titled-Tuesday-Blitz-June-04-2024"]
[Site "Chess.com"]
[Date "2024.06.04"]
[Round "2"]
[White "ncofre98"]
[Black "snowlord"]
[Result "0-1"]
[WhiteElo "2585"]
[BlackElo "2928"]
[TimeControl "180+1"]
[EndTime "14:17:44 PDT"]
[Termination "snowlord won by resignation"]

1. c4 {[%clk 0:03:00.9]} 1... g6 {[%clk 0:02:59.1]} 2. g3 {[%clk 0:02:58.4]}
2... e6 {[%clk 0:02:51.4]} 3. Bg2 {[%clk 0:02:57.3]} 3... d5 {[%clk 0:02:52.1]}
4. Nf3 {[%clk 0:02:57.1]} 4... Ne7 {[%clk 0:02:51.7]} 5. d4 {[%clk 0:02:54.3]}
5... Bg7 {[%clk 0:02:50.9]} 6. O-O {[%clk 0:02:48.7]} 6... Nbc6 {[%clk
0:02:51.1]} 7. Nc3 {[%clk 0:02:41.7]} 7... O-O {[%clk 0:02:51.4]} 8. cxd5 {[%clk
0:01:51.6]} 8... exd5 {[%clk 0:02:52.3]} 9. Bg5 {[%clk 0:01:50]} 9... h6 {[%clk
0:02:50]} 10. Bxe7 {[%clk 0:01:49.8]} 10... Nxe7 {[%clk 0:02:50.4]} 11. b4
{[%clk 0:01:47.6]} 11... Be6 {[%clk 0:02:40]} 12. Rc1 {[%clk 0:01:40.6]} 12...
a6 {[%clk 0:02:36.6]} 13. e3 {[%clk 0:01:31.6]} 13... g5 {[%clk 0:02:34.4]} 14.
Ne1 {[%clk 0:01:28.8]} 14... Qd7 {[%clk 0:02:26.9]} 15. Nd3 {[%clk 0:01:28.5]}
15... b6 {[%clk 0:02:24.1]} 16. a4 {[%clk 0:01:18.8]} 16... Ng6 {[%clk
0:02:19.9]} 17. Qb3 {[%clk 0:01:08.5]} 17... Rfd8 {[%clk 0:02:20.2]} 18. b5
{[%clk 0:01:03.5]} 18... a5 {[%clk 0:02:13.6]} 19. Rfd1 {[%clk 0:01:02]} 19...
h5 {[%clk 0:02:13.2]} 20. Qb2 {[%clk 0:00:55.8]} 20... Rac8 {[%clk 0:02:13.4]}
21. Ne2 {[%clk 0:00:49.3]} 21... h4 {[%clk 0:02:13.9]} 22. Ne5 {[%clk
0:00:44.6]} 22... Nxe5 {[%clk 0:01:55.2]} 23. dxe5 {[%clk 0:00:44]} 23... Qe8
{[%clk 0:01:56.1]} 24. Rd2 {[%clk 0:00:37.3]} 24... Bg4 {[%clk 0:01:52.2]} 25.
f4 {[%clk 0:00:35.3]} 25... h3 {[%clk 0:01:49.2]} 26. Bh1 {[%clk 0:00:32.7]}
26... c6 {[%clk 0:01:37.4]} 27. bxc6 {[%clk 0:00:23.7]} 27... Rxc6 {[%clk
0:01:38.3]} 28. Rf1 {[%clk 0:00:20.1]} 28... Bxe2 {[%clk 0:01:06.8]} 29. Rxe2
{[%clk 0:00:21]} 29... Rc4 {[%clk 0:01:07.5]} 30. Qxb6 {[%clk 0:00:20.3]} 30...
Qxa4 {[%clk 0:01:06.1]} 31. e6 {[%clk 0:00:19.8]} 31... Qe8 {[%clk 0:01:00.2]}
32. f5 {[%clk 0:00:17.9]} 32... Rb4 {[%clk 0:00:31.6]} 33. Qxa5 {[%clk
0:00:15.8]} 33... Rdb8 {[%clk 0:00:31.1]} 34. Bxd5 {[%clk 0:00:14.3]} 34... fxe6
{[%clk 0:00:18.3]} 35. Bxe6+ {[%clk 0:00:15.2]} 35... Kh8 {[%clk 0:00:19]} 36.
Qd5 {[%clk 0:00:13.1]} 36... Qh5 {[%clk 0:00:16.1]} 37. Qf3 {[%clk 0:00:11.7]}
37... g4 {[%clk 0:00:16.7]} 38. Qf4 {[%clk 0:00:11.1]} 38... Bf6 {[%clk
0:00:16.2]} 39. Qd6 {[%clk 0:00:10.2]} 39... Qg5 {[%clk 0:00:15]} 40. Qd5 {[%clk
0:00:06.9]} 40... Rb1 {[%clk 0:00:14.8]} 41. Qe4 {[%clk 0:00:03.6]} 41... R1b2
{[%clk 0:00:14.3]} 42. Qc4 {[%clk 0:00:02.4]} 42... Kg7 {[%clk 0:00:10.8]} 43.
Qd3 {[%clk 0:00:01.8]} 43... Rd8 {[%clk 0:00:09.6]} 44. Qd7+ {[%clk 0:00:02.7]}
44... Rxd7 {[%clk 0:00:09.8]} 0-1

[Event "Late-Titled-Tuesday-Blitz-June-04-2024"]
[Site "Chess.com"]
[Date "2024.06.04"]
[Round "2"]
[White "krzyzan94"]
[Black "Schattman"]
[Result "1-0"]
[WhiteElo "2816"]
[BlackElo "2545"]
[TimeControl "180+1"]
[EndTime "14:17:45 PDT"]
[Termination "krzyzan94 won on time"]

1. Nf3 {[%clk 0:03:00.9]} 1... Nf6 {[%clk 0:02:59.4]} 2. g3 {[%clk 0:03:00.9]}
2... d5 {[%clk 0:02:59.6]} 3. Bg2 {[%clk 0:03:01]} 3... e6 {[%clk 0:03:00.1]} 4.
O-O {[%clk 0:02:58.5]} 4... Be7 {[%clk 0:03:00.3]} 5. c4 {[%clk 0:02:57.4]} 5...
O-O {[%clk 0:02:59.7]} 6. b3 {[%clk 0:02:56.1]} 6... b6 {[%clk 0:02:59.1]} 7.
Bb2 {[%clk 0:02:56.2]} 7... Bb7 {[%clk 0:02:55.7]} 8. e3 {[%clk 0:02:52.8]} 8...
Nbd7 {[%clk 0:02:51.5]} 9. Nc3 {[%clk 0:02:52.7]} 9... c5 {[%clk 0:02:48.4]} 10.
Ne2 {[%clk 0:02:47.4]} 10... Re8 {[%clk 0:02:40.2]} 11. Rc1 {[%clk 0:02:43.3]}
11... Rc8 {[%clk 0:02:39.7]} 12. Nf4 {[%clk 0:02:40]} 12... dxc4 {[%clk
0:02:25.2]} 13. bxc4 {[%clk 0:02:38.1]} 13... Qc7 {[%clk 0:02:21.2]} 14. d4
{[%clk 0:02:28.1]} 14... h6 {[%clk 0:02:07.9]} 15. Qe2 {[%clk 0:02:19.7]} 15...
Bd6 {[%clk 0:02:06.9]} 16. Rfd1 {[%clk 0:02:07.6]} 16... Ba6 {[%clk 0:01:37.6]}
17. Bf1 {[%clk 0:01:42.3]} 17... e5 {[%clk 0:01:16.8]} 18. dxe5 {[%clk
0:01:36.6]} 18... Nxe5 {[%clk 0:01:08.8]} 19. Nh4 {[%clk 0:01:18.8]} 19... Bb7
{[%clk 0:01:00.7]} 20. Bg2 {[%clk 0:01:13.8]} 20... Bxg2 {[%clk 0:00:56.3]} 21.
Nhxg2 {[%clk 0:01:04.3]} 21... Qc6 {[%clk 0:00:44.3]} 22. Nd5 {[%clk 0:01:03.4]}
22... Nxd5 {[%clk 0:00:44]} 23. cxd5 {[%clk 0:01:02.7]} 23... Qd7 {[%clk
0:00:37.9]} 24. f4 {[%clk 0:01:00]} 24... Qg4 {[%clk 0:00:20.7]} 25. Qxg4 {[%clk
0:00:44.6]} 25... Nxg4 {[%clk 0:00:20.1]} 26. Re1 {[%clk 0:00:40.3]} 26... f5
{[%clk 0:00:19]} 27. h3 {[%clk 0:00:37.6]} 27... Nf6 {[%clk 0:00:17.9]} 28. Bxf6
{[%clk 0:00:38.2]} 28... gxf6 {[%clk 0:00:18.3]} 29. Nh4 {[%clk 0:00:39.1]}
29... Re4 {[%clk 0:00:13.4]} 30. Nxf5 {[%clk 0:00:37.6]} 30... Bf8 {[%clk
0:00:13.4]} 31. Kg2 {[%clk 0:00:32.1]} 31... Ra4 {[%clk 0:00:11.7]} 32. Rc2
{[%clk 0:00:31.5]} 32... Re8 {[%clk 0:00:10.5]} 33. d6 {[%clk 0:00:29.9]} 33...
c4 {[%clk 0:00:10.1]} 34. Rd1 {[%clk 0:00:27.6]} 34... b5 {[%clk 0:00:09.8]} 35.
Kf3 {[%clk 0:00:24.5]} 35... Kf7 {[%clk 0:00:09.2]} 36. Rd5 {[%clk 0:00:20.8]}
36... a6 {[%clk 0:00:08.3]} 37. Nd4 {[%clk 0:00:18.1]} 37... Ra3 {[%clk
0:00:07.3]} 38. Re2 {[%clk 0:00:16.6]} 38... Rd8 {[%clk 0:00:07.2]} 39. d7
{[%clk 0:00:14.3]} 39... Ke7 {[%clk 0:00:05.5]} 40. Nc6+ {[%clk 0:00:14.5]}
40... Ke6 {[%clk 0:00:05.1]} 41. Red2 {[%clk 0:00:12]} 41... c3 {[%clk
0:00:02.3]} 42. Nxd8+ {[%clk 0:00:11.7]} 1-0